fUST/lending_fUST_20251001
["ID","MTS","AMOUNT","RATE_DAILY","PERIOD"]
[388692654,1759320612282,10000.01,0.00019,2]
[388692655,1759320612307,10000.01,0.00019,2]
[388692656,1759320612332,9999.98,0.00019,2]
[388692657,1759320621604,0.03,0.00018978,2]
[388692658,1759320621629,10000.01,0.00018978,2]
[388692659,1759320621652,10000.01,0.00018978,2]
[388692660,1759320621674,10000.01,0.00018978,2]
[388692661,1759320621696,10000.01,0.00018978,2]
[388692662,1759320621721,10000.01,0.00018978,2]
[388692663,1759320621744,10000.01,0.00018978,2]
[388692664,1759320621766,10000.01,0.00018978,2]
[388692665,1759320621789,10000.01,0.00018978,2]
[388692666,1759320621822,289999.89,0.00018978,2]
[388692724,1759320631798,-1200.0,0.00019099,2]
[388692726,1759320631808,-300.0,0.000191,2]
[388692728,1759320631818,-300.0,0.000191,2]
[388692730,1759320631827,-300.0,0.000191,2]
[388692732,1759320631836,-300.0,0.000191,2]
[388692734,1759320631845,-429.15557058,0.000191,2]
[388692736,1759320631855,-300.0,0.00019162,2]
[388692738,1759320631864,-376.28,0.00019163,3]
[388692740,1759320631873,-188.14,0.00019163,3]
[388692742,1759320631882,-564.44,0.00019163,3]
[388692744,1759320631892,-999.97,0.00019166,2]
[388692746,1759320631902,-209.01831281,0.00019166,2]
[388692748,1759320631912,-28.61288908,0.00019172,7]
[388692750,1759320631924,-1445.01497575,0.00019172,7]
[388692752,1759320631936,-526.37213517,0.00019172,7]
[388692754,1759320631945,-75.39155164,0.00019172,7]
[388692872,1759320633158,-815.19718925,0.00019172,7]
[388692874,1759320633167,-3293.798254,0.00019173,2]
[388692876,1759320633177,-309.1266787,0.00019173,2]
[388692878,1759320633186,-500.0,0.00019173,2]
[388692880,1759320633195,-500.0,0.00019173,2]
[388692882,1759320633204,-500.58319121,0.00019173,2]
[388692884,1759320633213,-503.13573806,0.00019173,2]
[388692886,1759320633222,-500.0,0.00019173,2]
[388692888,1759320633232,-501.42193119,0.00019173,2]
[388692890,1759320633241,-345.50813946,0.00019173,2]
[388692892,1759320633250,-500.0,0.00019173,2]
[388692894,1759320633259,-500.0,0.00019173,2]
[388692896,1759320633268,-500.0,0.00019173,2]
[388692898,1759320633277,-503.31128271,0.00019173,2]
[388692900,1759320633286,-246.85646438,0.00019173,2]
[388692902,1759320633295,-500.0,0.00019173,2]
[388692904,1759320633304,-500.0,0.00019173,2]
[388692906,1759320633313,-500.0,0.00019173,2]
[388692908,1759320633322,-523.75132116,0.00019173,2]
[388692910,1759320633331,-500.0,0.00019173,2]
[388692912,1759320633340,-200.00901642,0.00019173,2]
[388692914,1759320633350,-500.0,0.00019173,2]
[388692916,1759320633359,-500.0,0.00019173,2]
[388692918,1759320633368,-406.65900098,0.00019173,2]
[388692920,1759320633377,-559.98411796,0.00019173,2]
[388692922,1759320633390,-500.0,0.00019173,2]
[388692924,1759320633399,-500.0,0.00019173,2]
[388692926,1759320633408,-500.0,0.00019173,2]
[388692927,1759320633417,-500.0,0.00019173,2]
[388692929,1759320633426,-500.0,0.00019173,2]
[388692931,1759320633435,-500.0,0.00019173,2]
[388692933,1759320633444,-464.23521972,0.00019178,2]
[388692935,1759320633458,-524.88384032,0.00019178,3]
[388692937,1759320633468,-442.62535005,0.00019178,2]
[388692939,1759320633477,-500.0,0.00019178,2]
[388692941,1759320633486,-500.0,0.00019178,2]
[388692943,1759320633496,-500.0,0.00019178,2]
[388692945,1759320633506,-500.0,0.00019178,2]
[388692946,1759320633515,-500.0,0.00019178,2]
[388692948,1759320633525,-500.0,0.00019178,2]
[388692950,1759320633535,-694.6,0.00019178,2]
[388692952,1759320633544,-484.1159967,0.00019178,2]
[388692954,1759320633554,-500.0,0.00019178,2]
[388692956,1759320633564,-312.33205921,0.00019178,2]
[388692958,1759320633573,-282.91403801,0.00019178,2]
[388692959,1759320633586,-217.08596199,0.00019178,2]
[388692960,1759320633596,-500.0,0.00019178,2]
[388692961,1759320633605,-271.71538059,0.00019178,2]
[388692962,1759320633616,-228.28461941,0.00019178,2]
[388692963,1759320633625,-500.0,0.00019178,2]
[388692964,1759320633634,-21.71538059,0.00019178,2]
[388692965,1759320633649,-461.71848373,0.00019178,2]
[388692966,1759320633658,-483.26106432,0.00019178,2]
[388692967,1759320633667,-500.0,0.00019178,2]
[388692968,1759320633676,-500.0,0.00019178,2]
[388692969,1759320633685,-500.0,0.00019178,2]
[388692970,1759320633694,-100.97872041,0.00019178,2]
[388693223,1759320637617,-171.23331438,0.00019172,2]
[388693224,1759320637627,-899.02127959,0.00019178,2]
[388693225,1759320637636,-500.0,0.00019178,2]
[388693226,1759320637646,-500.0,0.00019178,2]
[388693227,1759320637655,-464.85992535,0.00019178,2]
[388693228,1759320637664,-483.46988149,0.00019178,2]
[388693229,1759320637674,-482.02141956,0.00019178,2]
[388693230,1759320637683,-266.77318003,0.00019178,2]
[388693231,1759320637692,-500.0,0.00019178,2]
[388693232,1759320637701,-500.0,0.00019178,2]
[388693233,1759320637710,-461.22038527,0.00019178,2]
[388693234,1759320637719,-500.0,0.00019178,2]
[388693235,1759320637728,-500.0,0.00019178,2]
[388693236,1759320637738,-500.0,0.00019178,2]
[388693237,1759320637747,-500.0,0.00019178,2]
[388693238,1759320637756,-483.1438921,0.00019178,2]
[388693239,1759320637766,-482.33235265,0.00019178,2]
[388693240,1759320637776,-477.63787848,0.00019178,2]
[388693241,1759320637785,-500.0,0.00019178,2]
[388693242,1759320637794,-395.39501317,0.00019178,2]
[388693243,1759320637805,-500.0,0.00019178,2]
[388693244,1759320637814,-500.0,0.00019178,2]
[388693245,1759320637823,-500.0,0.00019178,2]
[388693246,1759320637834,-736.33,0.00019178,2]
[388693247,1759320637844,-482.91222151,0.00019178,2]
[388693248,1759320637853,-481.62358832,0.00019178,2]
[388693249,1759320637865,-500.0,0.00019178,2]
[388693250,1759320637881,-480.0,0.00019178,2]
[388693251,1759320637896,-500.0,0.00019178,2]
[388693252,1759320637906,-480.0,0.00019178,2]
[388693253,1759320637918,-500.0,0.00019178,2]
[388693254,1759320637927,-500.0,0.00019178,2]
[388693255,1759320637935,-500.0,0.00019178,2]
[388693256,1759320637945,-500.0,0.00019178,2]
[388693257,1759320637954,-505.58,0.00019178,2]
[388693258,1759320637962,-737.15,0.00019178,2]
[388693259,1759320637971,-482.73835951,0.00019178,2]
[388693260,1759320637980,-500.0,0.00019178,2]
[388693261,1759320637989,-500.0,0.00019178,2]
[388693262,1759320637998,-989.99,0.00019178,2]
[388693263,1759320638007,-500.0,0.00019178,2]
[388693264,1759320638015,-481.86231403,0.00019178,2]
[388693265,1759320638024,-500.0,0.00019178,2]
[388693266,1759320638033,-500.0,0.00019178,2]
[388693267,1759320638042,-500.0,0.00019178,2]
[388693268,1759320638051,-965.61,0.00019178,2]
[388693269,1759320638060,-500.0,0.00019178,2]
[388693270,1759320638069,-525.24,0.00019178,2]
[388693271,1759320638078,-482.27453128,0.00019178,2]
[388693272,1759320638087,-484.43841939,0.00019178,2]
[388693273,1759320638095,-500.0,0.00019178,2]
[388693274,1759320638104,-500.0,0.00019178,2]
[388693275,1759320638113,-840.33,0.00019178,2]
[388693276,1759320638122,-500.0,0.00019178,2]
[388693277,1759320638131,-343.9930511,0.00019178,2]
[388693278,1759320638140,-500.0,0.00019178,2]
[388693279,1759320638149,-500.0,0.00019178,2]
[388693280,1759320638157,-500.0,0.00019178,2]
[388693281,1759320638167,-500.0,0.00019178,2]
[388693282,1759320638176,-500.0,0.00019178,2]
[388693284,1759320638185,-500.0,0.00019178,2]
[388693286,1759320638194,-500.0,0.00019178,2]
[388693288,1759320638203,-500.0,0.00019178,2]
[388693289,1759320638213,-477.72051613,0.00019178,2]
[388693295,1759320638253,-22.27948387,0.00019178,2]
[388693297,1759320638263,-500.0,0.00019178,2]
[388693299,1759320638272,-500.0,0.00019178,2]
[388693301,1759320638282,-481.8786227,0.00019178,2]
[388693303,1759320638291,-500.0,0.00019178,2]
[388693305,1759320638300,-352.53287625,0.00019178,2]
[388693307,1759320638309,-482.06436435,0.00019178,2]
[388693309,1759320638319,-500.0,0.00019178,2]
[388693310,1759320638328,-500.0,0.00019178,2]
[388693312,1759320638338,-533.0642308,0.00019178,2]
[388693314,1759320638347,-500.0,0.00019178,2]
[388693316,1759320638356,-500.0,0.00019178,2]
[388693318,1759320638365,-500.0,0.00019178,2]
[388693320,1759320638374,-500.0,0.00019178,2]
[388693322,1759320638383,-481.60796634,0.00019178,2]
[388693324,1759320638393,-500.0,0.00019178,2]
[388693326,1759320638402,-500.0,0.00019178,2]
[388693328,1759320638411,-500.0,0.00019178,2]
[388693330,1759320638420,-1000.0,0.00019178,2]
[388693332,1759320638430,-466.52147331,0.00019178,2]
[388693334,1759320638439,-490.5581264,0.00019178,2]
[388693335,1759320638448,-500.0,0.00019178,2]
[388693337,1759320638462,-500.0,0.00019178,2]
[388693339,1759320638471,-500.0,0.00019178,2]
[388693341,1759320638484,-843.24,0.00019178,2]
[388693343,1759320638495,-500.0,0.00019178,2]
[388693345,1759320638505,-500.0,0.00019178,2]
[388693347,1759320638514,-500.0,0.00019178,2]
[388693350,1759320638524,-500.0,0.00019178,2]
[388693352,1759320638535,-500.0,0.00019178,2]
[388693353,1759320638544,-500.0,0.00019178,2]
[388693355,1759320638554,-846.04,0.00019178,2]
[388693357,1759320638564,-500.0,0.00019178,2]
[388693359,1759320638573,-500.0,0.00019178,2]
[388693361,1759320638582,-500.0,0.00019178,2]
[388693363,1759320638591,-482.77723507,0.00019178,2]
[388693365,1759320638605,-500.0,0.00019178,2]
[388693367,1759320638617,-2147.04,0.00019178,2]
[388693369,1759320638627,-500.0,0.00019178,2]
[388693371,1759320638636,-500.0,0.00019178,2]
[388693373,1759320638645,-500.0,0.00019178,2]
[388693375,1759320638654,-500.0,0.00019178,2]
[388693377,1759320638663,-500.0,0.00019178,2]
[388693379,1759320638671,-482.93289006,0.00019178,2]
[388693381,1759320638680,-481.57754388,0.00019178,2]
[388693382,1759320638690,-500.0,0.00019178,2]
[388693384,1759320638699,-482.83966128,0.00019178,2]
[388693386,1759320638708,-613.57088258,0.00019178,2]
[388693388,1759320638716,-500.0,0.00019178,2]
[388693389,1759320638725,-500.0,0.00019178,2]
[388693391,1759320638735,-459.38114142,0.00019178,2]
[388693393,1759320638745,-500.0,0.00019178,2]
[388693395,1759320638753,-500.0,0.00019178,2]
[388693397,1759320638763,-500.0,0.00019178,2]
[388693399,1759320638772,-451.18347492,0.00019178,2]
[388693401,1759320638780,-500.0,0.00019178,2]
[388693403,1759320638790,-500.0,0.00019178,2]
[388693405,1759320638799,-500.0,0.00019178,2]
[388693407,1759320638808,-482.28156793,0.00019178,2]
[388693409,1759320638817,-500.0,0.00019178,2]
[388693410,1759320638826,-464.6622955,0.00019178,2]
[388693412,1759320638835,-500.0,0.00019178,2]
[388693414,1759320638845,-480.0,0.00019178,2]
[388693416,1759320638855,-500.0,0.00019178,2]
[388693418,1759320638864,-550.58,0.00019178,2]
[388693420,1759320638874,-500.0,0.00019178,2]
[388693422,1759320638884,-500.0,0.00019178,2]
[388693424,1759320638893,-500.0,0.00019178,2]
[388693426,1759320638902,-500.0,0.00019178,2]
[388693428,1759320638912,-215.35360522,0.00019178,2]
[388693430,1759320638921,-352.09878113,0.00019178,2]
[388693432,1759320638930,-483.38234189,0.00019178,2]
[388693434,1759320638939,-500.0,0.00019178,2]
[388693436,1759320638948,-483.77693135,0.00019178,2]
[388693438,1759320638958,-500.0,0.00019178,2]
[388693440,1759320638967,-707.69,0.00019178,2]
[388693442,1759320638976,-500.0,0.00019178,2]
[388693444,1759320638985,-500.0,0.00019178,2]
[388693446,1759320638995,-500.0,0.00019178,2]
[388693448,1759320639004,-500.0,0.00019178,2]
[388693468,1759320639188,-500.0,0.00019178,2]
[388693470,1759320639198,-833.33,0.00019178,2]
[388693472,1759320639207,-500.0,0.00019178,2]
[388693474,1759320639216,-500.0,0.00019178,2]
[388693476,1759320639226,-500.0,0.00019178,2]
[388693478,1759320639235,-500.0,0.00019178,2]
[388693480,1759320639245,-482.96174991,0.00019178,2]
[388693482,1759320639254,-500.0,0.00019178,2]
[388693484,1759320639263,-500.0,0.00019178,2]
[388693486,1759320639272,-500.0,0.00019178,2]
[388693488,1759320639281,-500.0,0.00019178,2]
[388693490,1759320639291,-721.98,0.00019178,2]
[388693492,1759320639301,-1279.89,0.00019178,2]
[388693494,1759320639309,-500.0,0.00019178,2]
[388693496,1759320639319,-500.0,0.00019178,2]
[388693498,1759320639329,-500.0,0.00019178,2]
[388693501,1759320639338,-294.18504365,0.00019178,2]
[388693503,1759320639347,-500.0,0.00019178,2]
[388693506,1759320639357,-500.0,0.00019178,2]
[388693509,1759320639367,-360.81994033,0.00019178,2]
[388693512,1759320639376,-500.00486804,0.00019178,2]
[388693514,1759320639385,-745.73,0.00019178,2]
[388693516,1759320639394,-500.0,0.00019178,2]
[388693518,1759320639404,-500.0,0.00019178,2]
[388693520,1759320639413,-500.0,0.00019178,2]
[388693522,1759320639423,-500.0,0.00019178,2]
[388693524,1759320639431,-500.0,0.00019178,2]
[388693526,1759320639440,-482.2286605,0.00019178,2]
[388693528,1759320639451,-500.0,0.00019178,2]
[388693530,1759320639463,-500.0,0.00019178,2]
[388693532,1759320639473,-279.1214851,0.00019178,2]
[388693534,1759320639482,-715.31,0.00019178,2]
[388693536,1759320639491,-500.0,0.00019178,2]
[388693538,1759320639501,-500.0,0.00019178,2]
[388693540,1759320639510,-500.0,0.00019178,2]
[388693542,1759320639520,-500.0,0.00019178,2]
[388693544,1759320639530,-500.0,0.00019178,2]
[388693546,1759320639539,-500.0,0.00019178,2]
[388693548,1759320639548,-485.14440651,0.00019178,2]
[388693550,1759320639557,-2003.68,0.00019178,2]
[388693552,1759320639565,-500.0,0.00019178,2]
[388693554,1759320639575,-603.95809957,0.00019178,2]
[388693556,1759320639584,-500.0,0.00019178,2]
[388693558,1759320639593,-518.67,0.00019178,2]
[388693560,1759320639606,-500.0,0.00019178,2]
[388693562,1759320639615,-500.0,0.00019178,2]
[388693563,1759320639624,-500.0,0.00019178,2]
[388693565,1759320639634,-1225.59,0.00019178,2]
[388693567,1759320639643,-500.0,0.00019178,2]
[388693569,1759320639652,-2607.87,0.00019178,2]
[388693571,1759320639661,-582.49,0.00019178,2]
[388693573,1759320639670,-500.0,0.00019178,2]
[388693575,1759320639680,-483.9879505,0.00019178,2]
[388693577,1759320639689,-500.0,0.00019178,2]
[388693579,1759320639700,-500.0,0.00019178,2]
[388693581,1759320639711,-369.50487386,0.00019178,2]
[388693583,1759320639720,-500.0,0.00019178,2]
[388693585,1759320639730,-482.76775611,0.00019178,2]
[388693587,1759320639739,-500.0,0.00019178,2]
[388693589,1759320639749,-2194.54,0.00019178,2]
[388693591,1759320639759,-500.0,0.00019178,2]
[388693593,1759320639768,-500.0,0.00019178,2]
[388693595,1759320639777,-1000.83,0.00019178,2]
[388693597,1759320639786,-500.0,0.00019178,2]
[388693599,1759320639795,-500.0,0.00019178,2]
[388693601,1759320639805,-500.0,0.00019178,2]
[388693603,1759320639814,-500.0,0.00019178,2]
[388693605,1759320639823,-500.0,0.00019178,2]
[388693607,1759320639832,-500.0,0.00019178,2]
[388693609,1759320639842,-500.0,0.00019178,2]
[388693611,1759320639851,-500.0,0.00019178,2]
[388693613,1759320639860,-500.0,0.00019178,2]
[388693615,1759320639870,-503.87822302,0.00019178,2]
[388693618,1759320639879,-500.0,0.00019178,2]
[388693620,1759320639888,-500.0,0.00019178,2]
[388693622,1759320639897,-500.0,0.00019178,2]
[388693623,1759320639906,-500.0,0.00019178,2]
[388693625,1759320639915,-500.0,0.00019178,2]
[388693627,1759320639924,-500.0,0.00019178,2]
[388693630,1759320639933,-484.75411977,0.00019178,2]
[388693633,1759320639942,-491.19603644,0.00019178,2]
[388693636,1759320639951,-483.78392489,0.00019178,2]
[388693638,1759320639960,-500.0,0.00019178,2]
[388693641,1759320639969,-500.0,0.00019178,2]
[388693643,1759320639978,-500.0,0.00019178,2]
[388693645,1759320639988,-500.0,0.00019178,2]
[388693647,1759320639997,-500.0,0.00019178,2]
[388693649,1759320640007,-483.03985058,0.00019178,2]
[388693651,1759320640016,-500.0,0.00019178,2]
[388693653,1759320640025,-500.0,0.00019178,2]
[388693654,1759320640034,-500.0,0.00019178,2]
[388693656,1759320640043,-481.02921669,0.00019178,2]
[388693658,1759320640052,-500.0,0.00019178,2]
[388693660,1759320640061,-500.0,0.00019178,2]
[388693662,1759320640070,-475.04087973,0.00019178,2]
[388693663,1759320640079,-500.0,0.00019178,2]
[388693665,1759320640088,-500.0,0.00019178,2]
[388693667,1759320640097,-500.0,0.00019178,2]
[388693669,1759320640107,-500.0,0.00019178,2]
[388693671,1759320640116,-482.20273478,0.00019178,2]
[388693673,1759320640125,-500.0,0.00019178,2]
[388693674,1759320640134,-500.0,0.00019178,2]
[388693676,1759320640143,-500.0,0.00019178,2]
[388693678,1759320640152,-1052.05,0.00019178,2]
[388693680,1759320640162,-617.87,0.00019178,2]
[388693682,1759320640171,-483.38773296,0.00019178,2]
[388693684,1759320640180,-500.0,0.00019178,2]
[388693686,1759320640189,-157.76341602,0.00019178,2]
[388693688,1759320640198,-500.0,0.00019178,2]
[388693689,1759320640207,-500.0,0.00019178,2]
[388693691,1759320640216,-514.89,0.00019178,2]
[388693693,1759320640224,-500.0,0.00019178,2]
[388693695,1759320640233,-672.57,0.00019178,2]
[388693697,1759320640242,-480.0,0.00019178,2]
[388693699,1759320640251,-500.0,0.00019178,2]
[388693701,1759320640260,-2195.31,0.00019178,2]
[388693703,1759320640269,-532.12369732,0.00019178,2]
[388693705,1759320640279,-463.00034921,0.00019178,2]
[388693708,1759320640288,-500.0,0.00019178,2]
[388693709,1759320640299,-500.0,0.00019178,2]
[388693711,1759320640309,-853.86,0.00019178,2]
[388693713,1759320640318,-500.0,0.00019178,2]
[388693715,1759320640327,-500.0,0.00019178,2]
[388693717,1759320640336,-500.0,0.00019178,2]
[388693719,1759320640345,-485.02136223,0.00019178,2]
[388693721,1759320640354,-500.0,0.00019178,2]
[388693723,1759320640363,-525.14,0.00019178,2]
[388693726,1759320640372,-480.86306659,0.00019178,2]
[388693728,1759320640382,-500.0,0.00019178,2]
[388693729,1759320640391,-1144.28,0.00019178,2]
[388693732,1759320640402,-1003.35841774,0.00019178,2]
[388693734,1759320640412,-500.0,0.00019178,2]
[388693735,1759320640422,-500.0,0.00019178,2]
[388693737,1759320640431,-494.36068711,0.00019178,2]
[388693739,1759320640440,-500.0,0.00019178,2]
[388693741,1759320640452,-500.0,0.00019178,2]
[388693744,1759320640464,-434.05137779,0.00019178,2]
[388693746,1759320640474,-500.0,0.00019178,2]
[388693748,1759320640483,-462.76319141,0.00019178,2]
[388693750,1759320640494,-500.0,0.00019178,2]
[388693752,1759320640503,-500.0,0.00019178,2]
[388693754,1759320640512,-500.0,0.00019178,2]
[388693756,1759320640521,-480.9465214,0.00019178,2]
[388693758,1759320640531,-500.0,0.00019178,2]
[388693760,1759320640542,-500.0,0.00019178,2]
[388693762,1759320640551,-837.14,0.00019178,2]
[388693764,1759320640560,-500.0,0.00019178,2]
[388693765,1759320640570,-500.0,0.00019178,2]
[388693767,1759320640579,-500.0,0.00019178,2]
[388693769,1759320640589,-500.0,0.00019178,2]
[388693771,1759320640599,-572.8258145,0.00019178,2]
[388693773,1759320640608,-500.0,0.00019178,2]
[388693775,1759320640618,-500.0,0.00019178,2]
[388693777,1759320640627,-500.0,0.00019178,2]
[388693779,1759320640636,-481.71361658,0.00019178,2]
[388693781,1759320640645,-500.0,0.00019178,2]
[388693783,1759320640654,-500.0,0.00019178,2]
[388693785,1759320640663,-500.0,0.00019178,2]
[388693788,1759320640672,-500.0,0.00019178,2]
[388693789,1759320640681,-500.0,0.00019178,2]
[388693791,1759320640691,-500.0,0.00019178,2]
[388693793,1759320640699,-500.0,0.00019178,2]
[388693795,1759320640708,-500.0,0.00019178,2]
[388693798,1759320640718,-500.0,0.00019178,2]
[388693799,1759320640727,-485.28516041,0.00019178,2]
[388693802,1759320640736,-482.74087173,0.00019178,2]
[388693804,1759320640745,-484.316312,0.00019178,2]
[388693806,1759320640755,-500.0,0.00019178,2]
[388693808,1759320640765,-500.0,0.00019178,2]
[388693810,1759320640774,-500.0,0.00019178,2]
[388693812,1759320640783,-500.0,0.00019178,2]
[388693814,1759320640792,-500.0,0.00019178,2]
[388693816,1759320640801,-570.25222851,0.00019178,2]
[388693817,1759320640810,-500.0,0.00019178,2]
[388693819,1759320640820,-500.0,0.00019178,2]
[388693822,1759320640830,-500.0,0.00019178,2]
[388693823,1759320640839,-440.0,0.00019178,2]
[388693825,1759320640848,-1814.51,0.00019178,2]
[388693827,1759320640857,-500.0,0.00019178,2]
[388693829,1759320640867,-480.0,0.00019178,2]
[388693831,1759320640878,-3103.44,0.00019178,2]
[388693833,1759320640887,-626.76,0.00019178,2]
[388693835,1759320640896,-500.0,0.00019178,2]
[388693837,1759320640905,-500.0,0.00019178,2]
[388693839,1759320640914,-837.62,0.00019178,2]
[388693841,1759320640924,-500.0,0.00019178,2]
[388693843,1759320640933,-3011.93,0.00019178,2]
[388693845,1759320640942,-500.0,0.00019178,2]
[388693847,1759320640951,-500.0,0.00019178,2]
[388693849,1759320640961,-500.0,0.00019178,2]
[388693851,1759320640970,-456.88326285,0.00019178,2]
[388693853,1759320640979,-481.71731183,0.00019178,2]
[388693855,1759320640989,-500.0,0.00019178,2]
[388693858,1759320640999,-483.14455983,0.00019178,2]
[388693859,1759320641008,-500.0,0.00019178,2]
[388693861,1759320641018,-500.0,0.00019178,2]
[388693864,1759320641027,-484.51889215,0.00019178,2]
[388693866,1759320641037,-9707.79,0.00019178,2]
[388693868,1759320641045,-558.29,0.00019178,2]
[388693870,1759320641054,-500.0,0.00019178,2]
[388693872,1759320641062,-500.0,0.00019178,2]
[388693873,1759320641072,-524.78261851,0.00019178,2]
[388693875,1759320641081,-623.69,0.00019178,2]
[388693877,1759320641090,-500.0,0.00019178,2]
[388693879,1759320641100,-500.0,0.00019178,2]
[388693881,1759320641109,-485.34237365,0.00019178,2]
[388693883,1759320641118,-500.0,0.00019178,2]
[388693885,1759320641128,-500.0,0.00019178,2]
[388693887,1759320641137,-492.14513787,0.00019178,2]
[388693889,1759320641146,-500.0,0.00019178,2]
[388693891,1759320641155,-500.0,0.00019178,2]
[388693893,1759320641165,-1398.77,0.00019178,2]
[388693895,1759320641174,-500.0,0.00019178,2]
[388693897,1759320641184,-500.0,0.00019178,2]
[388693899,1759320641192,-777.44,0.00019178,2]
[388693901,1759320641202,-2943.09,0.00019178,2]
[388693903,1759320641211,-500.0,0.00019178,2]
[388693905,1759320641220,-500.0,0.00019178,2]
[388693907,1759320641229,-500.0,0.00019178,2]
[388693909,1759320641239,-500.0,0.00019178,2]
[388693911,1759320641247,-500.0,0.00019178,2]
[388693913,1759320641256,-500.0,0.00019178,2]
[388693915,1759320641266,-633.84,0.00019178,2]
[388693917,1759320641275,-769.37,0.00019178,2]
[388693919,1759320641284,-699.87,0.00019178,2]
[388693921,1759320641293,-483.04580821,0.00019178,2]
[388693923,1759320641302,-725.68,0.00019178,2]
[388693925,1759320641313,-488.91853193,0.00019178,2]
[388693926,1759320641322,-536.36,0.00019178,2]
[388693928,1759320641332,-1416.79,0.00019178,2]
[388693930,1759320641341,-500.0,0.00019178,2]
[388693932,1759320641350,-500.0,0.00019178,2]
[388693934,1759320641358,-890.93,0.00019178,2]
[388693937,1759320641368,-500.0,0.00019178,2]
[388693939,1759320641376,-500.0,0.00019178,2]
[388693941,1759320641386,-500.0,0.00019178,2]
[388693943,1759320641395,-500.0,0.00019178,2]
[388693945,1759320641404,-988.01,0.00019178,2]
[388693947,1759320641413,-542.9,0.00019178,2]
[388693948,1759320641422,-1581.99,0.00019178,2]
[388693951,1759320641431,-631.89970947,0.00019178,2]
[388693952,1759320641440,-3836.84,0.00019178,2]
[388693954,1759320641449,-500.0,0.00019178,2]
[388693956,1759320641463,-500.0,0.00019178,2]
[388693958,1759320641474,-768.33,0.00019178,2]
[388693961,1759320641485,-500.0,0.00019178,2]
[388693963,1759320641495,-753.42,0.00019178,2]
[388693965,1759320641505,-1397.1,0.00019178,2]
[388693966,1759320641515,-483.36914077,0.00019178,2]
[388693968,1759320641526,-1175.95,0.00019178,2]
[388693970,1759320641536,-484.80579583,0.00019178,2]
[388693973,1759320641546,-482.97861812,0.00019178,2]
[388693974,1759320641555,-481.47495896,0.00019178,2]
[388693976,1759320641564,-500.0,0.00019178,2]
[388693979,1759320641574,-1131.51,0.00019178,2]
[388693980,1759320641583,-1040.35,0.00019178,2]
[388693982,1759320641594,-1765.72,0.00019178,2]
[388693984,1759320641602,-175.9856758,0.00019178,2]
[388693986,1759320641611,-483.15182184,0.00019178,2]
[388693988,1759320641621,-480.0,0.00019178,2]
[388693990,1759320641630,-500.0,0.00019178,2]
[388693992,1759320641639,-226.69362217,0.00019178,2]
[388693994,1759320641648,-500.0,0.00019178,2]
[388693996,1759320641658,-1358.96,0.00019178,2]
[388693998,1759320641667,-914.43,0.00019178,2]
[388694000,1759320641676,-500.0,0.00019178,2]
[388694002,1759320641685,-500.0,0.00019178,2]
[388694004,1759320641695,-1077.71,0.00019178,2]
[388694006,1759320641704,-500.0,0.00019178,2]
[388694008,1759320641714,-1512.41,0.00019178,2]